[Event "XIX Najdorf Memorial 2019"]
[Site "Warsaw"]
[Date "2019.07.07"]
[Round "2.15"]
[White "Janik, Igor"]
[Black "Punin, Andrii"]
[Result "1-0"]
[ECO "E06"]
[WhiteElo "2495"]
[BlackElo "2305"]
[Annotator "ChessBase"]
[PlyCount "87"]
[EventDate "2019.07.06"]
[EventType "swiss"]
[EventCountry "POL"]
[SourceTitle "playchess.com"]
[Source "ChessBase"]
[SourceQuality "1"]
[TimeControl "40/5400+30:1800+30"]

1. d4 {[%emt 0:00:00]} Nf6 {[%emt 0:01:37]} 2. c4 {[%emt 0:00:00]} e6 {[%emt 0:00:08]} 3. Nf3 {[%emt 0:00:00]} d5 {[%emt 0:00:08]} 4. g3 {[%emt 0:00:00]} Be7 {[%emt 0:00:08]} 5. Bg2 {[%emt 0:00:00]} O-O {[%emt 0:00:08]} 6. Nc3 {[%emt 0:00:00]} dxc4 {[%emt 0:00:09]} 7. Ne5 {[%emt 0:00:00]} Nc6 {[%emt 0:00:08]} 8. Bxc6 {[%emt 0:00:00]} bxc6 {[%emt 0:00:05]} 9. Nxc6 {[%emt 0:00:04]} Qe8 {[%emt 0:00:10]} 10. Nxe7+ {[%emt 0:00:02]} Qxe7 {[%emt 0:00:09]} 11. Qa4 {[%emt 0:00:02]} c5 {[%emt 0:00:12]} 12. dxc5 {[%emt 0:00:05]} Qxc5 {[%emt 0:00:05]} 13. Be3 {[%emt 0:00:05]} Qc7 {[%emt 0:00:09]} 14. f3 {[%emt 0:00:05]} a5 {[%emt 0:10:00]} 15. Qa3 {[%emt 0:06:22]} Qb7 {[%emt 0:09:53]} 16. O-O-O {[%emt 0:05:28]} Nd5 {[%emt 0:05:45]} 17. Bc5 {[%emt 0:05:05]} Re8 {[%emt 0:03:59]} 18. Ne4 {[%emt 0:03:55]} c3 {[%emt 0:04:43]} 19. bxc3 {[%emt 0:01:37]} Rb8 {[%emt 0:01:08]} 20. Kc2 {[%emt 0:01:40]} Bd7 {[%emt 0:07:32]} 21. c4 {[%emt 0:10:45]} Nb4+ {[%emt 0:05:48]} 22. Kc1 {[%emt 0:04:52]} Rec8 {[%emt 0:17:16]} 23. Nd6 {[%emt 0:05:20]} Qa6 {[%emt 0:03:26]} 24. Bxb4 {[%emt 0:03:34]} Rxb4 {[%emt 0:00:11]} 25. Nxc8 {[%emt 0:05:40]} Qxc4+ {[%emt 0:00:12]} 26. Kd2 {[%emt 0:00:09]} Bb5 {[%emt 0:00:10]} 27. Nd6 {[%emt 0:04:03]} Qxe2+ {[%emt 0:03:21]} 28. Kc1 {[%emt 0:00:34]} Bc6 {[%emt 0:15:34]} 29. Rhe1 {[%emt 0:01:24]} Qf2 {[%emt 0:01:53]} 30. Ne4 {[%emt 0:00:39]} Qb6 {[%emt 0:02:08]} 31. Qd3 {[%emt 0:00:27]} Bd5 {[%emt 0:00:25]} 32. Nc3 {[%emt 0:00:31]} Qc5 {[%emt 0:01:38]} 33. Re2 {[%emt 0:01:13]} h6 {[%emt 0:01:42]} 34. Rc2 {[%emt 0:00:08]} Bc4 {[%emt 0:00:26]} 35. Qd4 {[%emt 0:01:10]} Qc6 {[%emt 0:00:12]} 36. Qe4 {[%emt 0:00:35]} Qb6 {[%emt 0:01:04]} 37. a3 {[%emt 0:00:42]} Bd5 {[%emt 0:00:09]} 38. Qd3 {[%emt 0:01:08]} Rb3 {[%emt 0:01:18]} 39. Qd4 {[%emt 0:00:39]} Qd6 {[%emt 0:00:56]} 40. Nxd5 {[%emt 0:00:00]} Qxa3+ {[%emt 0:00:00]} 41. Kd2 {[%emt 0:01:13]} exd5 {[%emt 0:01:05]} 42. Ke2 {[%emt 0:00:28]} Rxf3 {[%emt 0:06:31]} 43. Rd3 {[%emt 0:00:21]} Rxd3 {[%emt 0:00:06]} 44. Rc8+ {[%emt 0:00:03]} 1-0

[Event "XIX Najdorf Memorial 2019"]
[Site "Warsaw"]
[Date "2019.07.07"]
[Round "2.15"]
[White "Milikow, Elie"]
[Black "Jarmula, Lukasz"]
[Result "0-1"]
[ECO "B62"]
[WhiteElo "2129"]
[BlackElo "2480"]
[Annotator "ChessBase"]
[PlyCount "74"]
[EventDate "2019.07.06"]
[EventType "swiss"]
[EventCountry "POL"]
[SourceTitle "playchess.com"]
[Source "ChessBase"]
[SourceQuality "1"]
[TimeControl "40/5400+30:1800+30"]

1. e4 c5 2. Nf3 d6 3. d4 cxd4 4. Nxd4 Nf6 5. Nc3 Nc6 6. Bg5 e6 7. Be2 Be7 8. Qd2 a6 9. O-O-O Bd7 10. f4 h6 11. Bh4 Qc7 12. Qe3 Rc8 13. Bg3 b5 14. e5 Nxd4 15. Qxd4 dxe5 16. fxe5 Nd5 17. Kb1 Nxc3+ 18. bxc3 Bc6 19. Bh5 g6 20. Bxg6 Bd5 21. Be4 Bxe4 22. Qxe4 Qxc3 23. Qd3 Qb4+ 24. Qb3 Qe4 25. Qd3 Qb4+ 26. Qb3 Qc5 27. Rhf1 a5 28. Rf2 O-O 29. Rf4 Rfd8 30. Rc1 Bg5 31. Rg4 Rd4 32. Rxd4 Qxd4 33. c3 Qd3+ 34. Rc2 Rc4 35. a3 Be7 36. Kb2 Ra4 37. Rc1 Bxa3+ 0-1

[Event "XIX Najdorf Memorial 2019"]
[Site "Warsaw"]
[Date "2019.07.07"]
[Round "2.16"]
[White "Grib, Roman"]
[Black "Maj, Pawel"]
[Result "1-0"]
[ECO "C80"]
[WhiteElo "2421"]
[BlackElo "2127"]
[Annotator "NA"]
[PlyCount "109"]
[EventDate "2019.07.06"]
[EventType "swiss"]
[EventCountry "POL"]
[SourceTitle "playchess.com"]
[Source "ChessBase"]
[SourceQuality "1"]
[TimeControl "40/5400+30:1800+30"]

1. e4 {[%emt 0:00:00]} e5 {[%emt 0:00:00]} 2. Nf3 {[%emt 0:00:00]} Nc6 {[%emt 0:00:00]} 3. Bb5 {[%emt 0:00:03]} a6 {[%emt 0:00:00]} 4. Ba4 {[%emt 0:00:08]} Nf6 {[%emt 0:00:00]} 5. O-O {[%emt 0:00:13]} Nxe4 {[%emt 0:00:24]} 6. d4 {[%emt 0:00:17]} b5 {[%emt 0:00:21]} 7. Bb3 {[%emt 0:00:05]} d5 {[%emt 0:00:16]} 8. dxe5 {[%emt 0:00:07]} Be6 {[%emt 0:00:08]} 9. Nbd2 {[%emt 0:04:40]} Nc5 {[%emt 0:00:51]} 10. c3 {[%emt 0:00:07]} Be7 {[%emt 0:00:38]} 11. Qe2 {[%emt 0:19:49]} Nxb3 {[%emt 0:08:34]} 12. Nxb3 {[%emt 0:00:24]} O-O {[%emt 0:07:13]} 13. Nfd4 {[%emt 0:18:21]} Nxd4 {[%emt 0:07:00]} 14. cxd4 {[%emt 0:00:11]} Qd7 {[%emt 0:05:01]} 15. Bd2 {[%emt 0:02:23]} f6 {[%emt 0:07:19]} 16. Rfe1 {[%emt 0:12:44]} Rae8 {[%emt 0:11:00]} 17. exf6 {[%emt 0:13:09]} Rxf6 {[%emt 0:02:17]} 18. Bg5 {[%emt 0:01:27]} Rg6 {[%emt 0:06:41]} 19. Bxe7 {[%emt 0:09:34]} Bh3 {[%emt 0:10:12]} 20. g3 {[%emt 0:01:29]} Re6 {[%emt 0:00:56]} 21. Qh5 {[%emt 0:01:25]} R8xe7 {[%emt 0:01:52]} 22. Re5 {[%emt 0:01:13]} Rxe5 {[%emt 0:04:33]} 23. dxe5 {[%emt 0:00:03]} d4 {[%emt 0:03:26]} 24. Nc5 {[%emt 0:04:12]} Qd5 {[%emt 0:01:44]} 25. Qxh3 {[%emt 0:00:20]} Qxc5 {[%emt 0:00:05]} 26. Qc8+ {[%emt 0:01:31]} Kf7 {[%emt 0:00:07]} 27. Qf5+ {[%emt 0:00:12]} Kg8 {[%emt 0:00:07]} 28. Re1 {[%emt 0:01:08]} g6 {[%emt 0:01:36]} 29. Qe4 {[%emt 0:03:38]} d3 {[%emt 0:01:53]} 30. Qxd3 {[%emt 0:00:38]} Rxe5 {[%emt 0:00:18]} 31. Qd8+ {[%emt 0:00:29]} Kg7 {[%emt 0:00:32]} 32. Rd1 {[%emt 0:01:24]} Re7 {[%emt 0:01:35]} 33. a3 {[%emt 0:03:08]} Rf7 {[%emt 0:02:29]} 34. Qd2 {[%emt 0:00:08]} Qe5 {[%emt 0:00:35]} 35. b4 {[%emt 0:00:43]} Re7 {[%emt 0:03:56]} 36. Rc1 {[%emt 0:00:48]} Qf6 {[%emt 0:07:03]} 37. h4 {[%emt 0:00:53]} Rf7 {[%emt 0:01:26]} 38. Qc3 {[%emt 0:01:19]} c6 {[%emt 0:04:05]} 39. Qd2 {[%emt 0:00:31]} Re7 {[%emt 0:01:12]} 40. Kg2 {[%emt 0:00:00]} Qe5 {[%emt 0:00:00]} 41. Rc5 {[%emt 0:17:57]} Qe4+ {[%emt 0:01:44]} 42. Kh2 {[%emt 0:00:11]} Rf7 {[%emt 0:02:37]} 43. h5 {[%emt 0:01:52]} h6 {[%emt 0:04:53]} 44. hxg6 {[%emt 0:08:02]} Kxg6 {[%emt 0:00:24]} 45. f4 {[%emt 0:01:44]} Rf5 {[%emt 0:04:22]} 46. Qd6+ {[%emt 0:00:54]} Rf6 {[%emt 0:01:08]} 47. Qd1 {[%emt 0:00:13]} Rf5 {[%emt 0:09:45]} 48. Qg4+ {[%emt 0:00:22]} Kf6 {[%emt 0:00:06]} 49. Rxf5+ {[%emt 0:01:17]} Qxf5 {[%emt 0:00:10]} 50. Qxf5+ {[%emt 0:00:25]} Kxf5 {[%emt 0:00:05]} 51. Kh3 {[%emt 0:00:02]} Ke4 {[%emt 0:01:59]} 52. Kh4 {[%emt 0:00:18]} Kd5 {[%emt 0:00:30]} 53. f5 {[%emt 0:00:16]} c5 {[%emt 0:00:33]} 54. bxc5 {[%emt 0:00:05]} Kxc5 {[%emt 0:00:11]} 55. f6 {[%emt 0:00:12]} 1-0

[Event "XIX Najdorf Memorial 2019"]
[Site "Warsaw"]
[Date "2019.07.07"]
[Round "2.17"]
[White "Zebracki, Tomasz"]
[Black "Franco Alonso, Alejandro"]
[Result "1-0"]
[ECO "B40"]
[WhiteElo "2183"]
[BlackElo "2410"]
[Annotator "NA"]
[PlyCount "83"]
[EventDate "2019.07.06"]
[EventType "swiss"]
[EventCountry "POL"]
[SourceTitle "playchess.com"]
[Source "ChessBase"]
[SourceQuality "1"]
[TimeControl "40/5400+30:1800+30"]

1. e4 {[%emt 0:00:00]} c5 {[%emt 0:00:00]} 2. Nf3 {[%emt 0:00:00]} e6 {[%emt 0:00:00]} 3. c3 {[%emt 0:00:00]} Nf6 {[%emt 0:00:00]} 4. e5 {[%emt 0:00:00]} Nd5 {[%emt 0:00:00]} 5. d4 {[%emt 0:00:00]} cxd4 {[%emt 0:00:00]} 6. cxd4 {[%emt 0:00:00]} d6 {[%emt 0:00:04]} 7. Nc3 {[%emt 0:00:00]} Nxc3 {[%emt 0:00:11]} 8. bxc3 {[%emt 0:00:04]} Qc7 {[%emt 0:00:05]} 9. Bd2 {[%emt 0:00:08]} Nd7 {[%emt 0:00:08]} 10. Ng5 {[%emt 0:01:48]} dxe5 {[%emt 0:03:19]} 11. Qh5 {[%emt 0:01:09]} g6 {[%emt 0:08:51]} 12. Qf3 {[%emt 0:00:28]} f5 {[%emt 0:03:26]} 13. Nxe6 {[%emt 0:00:54]} Qd6 {[%emt 0:00:09]} 14. Nxf8 {[%emt 0:00:38]} Nxf8 {[%emt 0:01:08]} 15. Bb5+ {[%emt 0:01:17]} Bd7 {[%emt 0:01:30]} 16. Qxb7 {[%emt 0:06:04]} Rb8 {[%emt 0:00:12]} 17. Bxd7+ {[%emt 0:00:09]} Nxd7 {[%emt 0:00:07]} 18. Qxa7 {[%emt 0:04:27]} Qc6 {[%emt 0:04:45]} 19. O-O {[%emt 0:11:11]} Ra8 {[%emt 0:04:25]} 20. d5 {[%emt 0:00:06]} Qxd5 {[%emt 0:00:09]} 21. Qe3 {[%emt 0:03:52]} Rxa2 {[%emt 0:14:42]} 22. Rxa2 {[%emt 0:10:17]} Qxa2 {[%emt 0:00:08]} 23. Qd3 {[%emt 0:00:23]} Qe6 {[%emt 0:10:58]} 24. Bh6 {[%emt 0:09:24]} Kf7 {[%emt 0:00:39]} 25. Ra1 {[%emt 0:10:21]} Rb8 {[%emt 0:02:54]} 26. Ra7 {[%emt 0:00:10]} Ke8 {[%emt 0:00:16]} 27. h4 {[%emt 0:00:31]} Qc6 {[%emt 0:06:32]} 28. Bg5 {[%emt 0:09:32]} h5 {[%emt 0:06:32]} 29. c4 {[%emt 0:03:01]} Rc8 {[%emt 0:10:59]} 30. c5 {[%emt 0:05:48]} Qe6 {[%emt 0:00:28]} 31. Ra6 {[%emt 0:09:05]} Rc6 {[%emt 0:00:19]} 32. Ra8+ {[%emt 0:03:44]} Kf7 {[%emt 0:00:13]} 33. Ra7 {[%emt 0:00:08]} Ke8 {[%emt 0:00:08]} 34. Ra8+ {[%emt 0:02:21]} Kf7 {[%emt 0:00:06]} 35. Ra7 {[%emt 0:00:03]} Ke8 {[%emt 0:00:06]} 36. Qa3 {[%emt 0:01:09]} f4 {[%emt 0:09:56]} 37. Qa5 {[%emt 0:02:13]} Rc8 {[%emt 0:03:38]} 38. Ra6 {[%emt 0:00:33]} Qd5 {[%emt 0:02:09]} 39. c6 {[%emt 0:01:36]} Nc5 {[%emt 0:03:45]} 40. Ra7 {[%emt 0:00:00]} Qxc6 {[%emt 0:00:00]} 41. Re7+ {[%emt 0:08:52]} Kf8 {[%emt 0:01:17]} 42. Qa2 {[%emt 0:00:13]} 1-0

[Event "XIX Najdorf Memorial 2019"]
[Site "Warsaw"]
[Date "2019.07.07"]
[Round "2.18"]
[White "Terletsky, Oleg"]
[Black "Sanz Wawer, Daniel"]
[Result "1/2-1/2"]
[ECO "B18"]
[WhiteElo "2408"]
[BlackElo "2154"]
[Annotator "NA"]
[PlyCount "50"]
[EventDate "2019.07.06"]
[EventType "swiss"]
[EventCountry "POL"]
[SourceTitle "playchess.com"]
[Source "ChessBase"]
[SourceQuality "1"]
[TimeControl "40/5400+30:1800+30"]

1. e4 c6 2. d4 d5 3. Nc3 dxe4 4. Nxe4 Bf5 5. Ng3 Bg6 6. h4 h6 7. Nf3 e6 8. h5 Bh7 9. Bd3 Bxd3 10. Qxd3 Nf6 11. Bf4 Bd6 12. Ne5 O-O 13. Rh3 Qc7 14. Ne4 Nxe4 15. Qxe4 f6 16. Ng6 Re8 17. O-O-O Nd7 18. Rg3 Bxf4+ 19. Nxf4 Nf8 20. Rdd3 Rad8 21. Ng6 Nxg6 22. Rxg6 Rd5 23. g4 c5 24. dxc5 Rxd3 25. Qxd3 Qxc5 1/2-1/2

[Event "XIX Najdorf Memorial 2019"]
[Site "Warsaw"]
[Date "2019.07.07"]
[Round "2.19"]
[White "Panek, Bartosz"]
[Black "Sieciechowicz, Marcin"]
[Result "1/2-1/2"]
[ECO "D90"]
[WhiteElo "2041"]
[BlackElo "2399"]
[Annotator "NA"]
[PlyCount "91"]
[EventDate "2019.07.06"]
[EventType "swiss"]
[EventCountry "POL"]
[SourceTitle "playchess.com"]
[Source "ChessBase"]
[SourceQuality "1"]
[TimeControl "40/5400+30:1800+30"]

1. d4 Nf6 2. c4 g6 3. Nc3 d5 4. Nf3 Bg7 5. cxd5 Nxd5 6. Bg5 O-O 7. e3 Nxc3 8. bxc3 c5 9. Be2 Nc6 10. O-O b6 11. Qb3 Qc7 12. Rfd1 e5 13. Qa3 Bf5 14. Bb5 f6 15. Bh4 Bg4 16. dxc5 Na5 17. cxb6 axb6 18. Qb4 Be6 19. Rd6 Bc4 20. Rc6 Nxc6 21. Qxc4+ Kh8 22. Qxc6 Qxc6 23. Bxc6 Rac8 24. Bb5 Rxc3 25. a4 Rfc8 26. g4 Kg8 27. Kg2 Rc1 28. Rxc1 Rxc1 29. Nd2 g5 30. Bg3 Bf8 31. h4 gxh4 32. Bxh4 Kg7 33. Ne4 Be7 34. Ng3 Kf7 35. Kf3 Rc2 36. Nh5 f5 37. Bxe7 fxg4+ 38. Kxg4 Kxe7 39. Kf3 e4+ 40. Kg3 Ke6 41. Nf4+ Ke5 42. Ne2 Rc7 43. Kh4 Rg7 44. Kh3 Rf7 45. Nf4 Rg7 46. Ne2 1/2-1/2

[Event "XIX Najdorf Memorial 2019"]
[Site "Warsaw"]
[Date "2019.07.07"]
[Round "2.20"]
[White "Tomaszewski, Kacper"]
[Black "Malinowski, Damian"]
[Result "1-0"]
[ECO "D15"]
[WhiteElo "2346"]
[BlackElo "2019"]
[Annotator "NA"]
[PlyCount "93"]
[EventDate "2019.07.06"]
[EventType "swiss"]
[EventCountry "POL"]
[SourceTitle "playchess.com"]
[Source "ChessBase"]
[SourceQuality "1"]
[TimeControl "40/5400+30:1800+30"]

1. d4 d5 2. c4 c6 3. Nc3 Nf6 4. Nf3 a6 5. Ne5 Nbd7 6. cxd5 Nxe5 7. dxe5 Nxd5 8. e4 Nxc3 9. Qxd8+ Kxd8 10. bxc3 e6 11. Be3 Kc7 12. a4 a5 13. Bd3 Be7 14. Ke2 b6 15. Rhb1 c5 16. Ra2 Ba6 17. Bxa6 Rxa6 18. Rab2 Rd8 19. f4 Kc6 20. g4 Rd7 21. g5 Bd8 22. h4 Bc7 23. h5 Ra8 24. Rg1 Rad8 25. g6 fxg6 26. hxg6 h6 27. Rgb1 Rb8 28. Rb5 Rdd8 29. c4 Rf8 30. Rd1 Rfd8 31. Rbb1 Rxd1 32. Rxd1 Rf8 33. Rd3 Re8 34. Bd2 Rf8 35. Rf3 Kd7 36. Bc3 Re8 37. Rd3+ Kc6 38. Kf3 Rg8 39. Kg4 Re8 40. Re3 Rf8 41. f5 Rg8 42. Kh5 exf5 43. exf5 Kd7 44. f6 Ke6 45. fxg7 Rxg7 46. Kxh6 Rd7 47. g7 1-0

[Event "XIX Najdorf Memorial 2019"]
[Site "Warsaw"]
[Date "2019.07.07"]
[Round "2.21"]
[White "Krasiewicz, Robert"]
[Black "Kucza, Karol"]
[Result "0-1"]
[ECO "A15"]
[WhiteElo "2017"]
[BlackElo "2315"]
[Annotator "NA"]
[PlyCount "96"]
[EventDate "2019.07.06"]
[EventType "swiss"]
[EventCountry "POL"]
[SourceTitle "playchess.com"]
[Source "ChessBase"]
[SourceQuality "1"]
[TimeControl "40/5400+30:1800+30"]

1. c4 Nf6 2. g3 g6 3. Nc3 Bg7 4. Bg2 e5 5. d3 O-O 6. e4 d6 7. Nge2 Nc6 8. O-O Be6 9. h3 Nh5 10. g4 Nf6 11. Nd5 Nd7 12. Ng3 Nd4 13. Be3 c5 14. Qd2 Bxd5 15. cxd5 b5 16. Rac1 a5 17. Bg5 Qb6 18. Bh6 Bxh6 19. Qxh6 Qd8 20. Kh1 Qf6 21. Qe3 Qf4 22. Rfe1 a4 23. Ne2 Nxe2 24. Rxe2 a3 25. b3 Qf6 26. Qg3 Kg7 27. Re3 Qf4 28. Rc2 Qxg3 29. Rxg3 b4 30. Bf3 Nb6 31. Kg2 Nc8 32. h4 Na7 33. g5 Nb5 34. Rd2 Nd4 35. Bd1 f6 36. gxf6+ Rxf6 37. h5 Raf8 38. hxg6 hxg6 39. Bg4 Rh8 40. Rh3 Rff8 41. Rxh8 Rxh8 42. Rd1 Kf6 43. Kg3 Nb5 44. Bf3 Nc3 45. Rd2 Kg5 46. Bg2 Rh4 47. Bh3 Rxe4 48. f3 Rh4 0-1

[Event "XIX Najdorf Memorial 2019"]
[Site "Warsaw"]
[Date "2019.07.07"]
[Round "2.22"]
[White "Deszczynski, Adam"]
[Black "Marcinczyk, Monika"]
[Result "1-0"]
[ECO "A13"]
[WhiteElo "2304"]
[BlackElo "1960"]
[Annotator "NA"]
[PlyCount "41"]
[EventDate "2019.07.06"]
[EventType "swiss"]
[EventCountry "POL"]
[SourceTitle "playchess.com"]
[Source "ChessBase"]
[SourceQuality "1"]
[TimeControl "40/5400+30:1800+30"]

1. c4 e6 2. Nf3 Nf6 3. g3 d5 4. Bg2 c5 5. O-O Be7 6. d4 Bd7 7. cxd5 Nxd5 8. e4 Nf6 9. Nc3 Bc6 10. Re1 h6 11. Bf4 Na6 12. d5 exd5 13. exd5 Nxd5 14. Ne5 Nab4 15. Nxc6 bxc6 16. Qe2 Nxf4 17. gxf4 Kf8 18. Rad1 Qc7 19. a3 Nd5 20. Bxd5 cxd5 21. Nxd5 1-0

[Event "XIX Najdorf Memorial 2019"]
[Site "Warsaw"]
[Date "2019.07.07"]
[Round "2.23"]
[White "Martynyuk, Elizaveta"]
[Black "Marczuk, Dominik"]
[Result "1-0"]
[ECO "B11"]
[WhiteElo "2125"]
[BlackElo "2300"]
[Annotator "NA"]
[PlyCount "59"]
[EventDate "2019.07.06"]
[EventType "swiss"]
[EventCountry "POL"]
[SourceTitle "playchess.com"]
[Source "ChessBase"]
[SourceQuality "1"]
[TimeControl "40/5400+30:1800+30"]

1. e4 {[%emt 0:04:29]} c6 {[%emt 0:00:00]} 2. Nc3 {[%emt 0:00:04]} d5 {[%emt 0:00:00]} 3. Nf3 {[%emt 0:00:05]} Bg4 {[%emt 0:00:23]} 4. h3 {[%emt 0:00:09]} Bxf3 {[%emt 0:00:27]} 5. Qxf3 {[%emt 0:00:06]} e6 {[%emt 0:00:24]} 6. d3 {[%emt 0:00:08]} Nd7 {[%emt 0:00:57]} 7. Bd2 {[%emt 0:00:46]} Ngf6 {[%emt 0:02:10]} 8. g4 {[%emt 0:05:19]} g6 {[%emt 0:00:37]} 9. Qg3 {[%emt 0:06:48]} Bg7 {[%emt 0:06:44]} 10. e5 {[%emt 0:03:41]} Ng8 {[%emt 0:01:28]} 11. f4 {[%emt 0:00:07]} Qb6 {[%emt 0:09:26]} 12. O-O-O {[%emt 0:00:12]} g5 {[%emt 0:07:24]} 13. h4 {[%emt 0:17:00]} gxf4 {[%emt 0:01:47]} 14. Bxf4 {[%emt 0:00:07]} c5 {[%emt 0:07:57]} 15. d4 {[%emt 0:02:41]} c4 {[%emt 0:00:55]} 16. g5 {[%emt 0:02:29]} Ne7 {[%emt 0:00:56]} 17. h5 {[%emt 0:00:50]} Qc6 {[%emt 0:11:02]} 18. Bh3 {[%emt 0:03:14]} b5 {[%emt 0:06:13]} 19. Kb1 {[%emt 0:02:03]} Nb6 {[%emt 0:17:28]} 20. g6 {[%emt 0:01:27]} hxg6 {[%emt 0:02:32]} 21. Bg4 {[%emt 0:04:02]} b4 {[%emt 0:02:13]} 22. Ne2 {[%emt 0:00:23]} Nd7 {[%emt 0:15:11]} 23. Bg5 {[%emt 0:10:29]} Nf5 {[%emt 0:02:34]} 24. Bxf5 {[%emt 0:00:34]} gxf5 {[%emt 0:00:38]} 25. h6 {[%emt 0:00:45]} Bf8 {[%emt 0:00:05]} 26. h7 {[%emt 0:02:20]} Be7 {[%emt 0:02:27]} 27. Nf4 {[%emt 0:02:08]} Nf8 {[%emt 0:01:00]} 28. Bxe7 {[%emt 0:00:45]} Kxe7 {[%emt 0:00:04]} 29. Qg5+ {[%emt 0:00:10]} Kd7 {[%emt 0:00:10]} 30. Qg7 {[%emt 0:00:10]} 1-0

[Event "XIX Najdorf Memorial 2019"]
[Site "Warsaw"]
[Date "2019.07.07"]
[Round "2.24"]
[White "Siekanski, Janusz"]
[Black "Parol, Pola"]
[Result "1-0"]
[ECO "E49"]
[WhiteElo "2270"]
[BlackElo "2064"]
[Annotator "NA"]
[PlyCount "125"]
[EventDate "2019.07.06"]
[EventType "swiss"]
[EventCountry "POL"]
[SourceTitle "playchess.com"]
[Source "ChessBase"]
[SourceQuality "1"]
[TimeControl "40/5400+30:1800+30"]

1. d4 {[%emt 0:00:00]} Nf6 {[%emt 0:00:00]} 2. c4 {[%emt 0:00:00]} e6 {[%emt 0:00:00]} 3. Nc3 {[%emt 0:00:00]} Bb4 {[%emt 0:00:00]} 4. e3 {[%emt 0:00:25]} O-O {[%emt 0:00:10]} 5. Bd3 {[%emt 0:00:22]} d5 {[%emt 0:00:29]} 6. a3 {[%emt 0:00:54]} Bxc3+ {[%emt 0:00:30]} 7. bxc3 {[%emt 0:00:02]} dxc4 {[%emt 0:00:58]} 8. Bxc4 {[%emt 0:00:19]} c5 {[%emt 0:00:40]} 9. Ne2 {[%emt 0:03:20]} Qc7 {[%emt 0:03:21]} 10. Bd3 {[%emt 0:06:03]} Nc6 {[%emt 0:00:38]} 11. f4 {[%emt 0:09:59]} b6 {[%emt 0:09:23]} 12. O-O {[%emt 0:00:28]} Bb7 {[%emt 0:01:07]} 13. e4 {[%emt 0:15:45]} Na5 {[%emt 0:13:59]} 14. e5 {[%emt 0:09:28]} Qc6 {[%emt 0:01:53]} 15. Rf3 {[%emt 0:00:31]} Ne4 {[%emt 0:04:17]} 16. Ng3 {[%emt 0:07:07]} f5 {[%emt 0:06:14]} 17. exf6 {[%emt 0:00:56]} Nxf6 {[%emt 0:00:35]} 18. Rf2 {[%emt 0:03:50]} Rad8 {[%emt 0:07:12]} 19. Be3 {[%emt 0:03:58]} Kh8 {[%emt 0:10:02]} 20. Rb1 {[%emt 0:03:48]} Qd6 {[%emt 0:02:32]} 21. a4 {[%emt 0:06:17]} cxd4 {[%emt 0:05:02]} 22. cxd4 {[%emt 0:01:25]} Nc6 {[%emt 0:05:28]} 23. Ne4 {[%emt 0:01:28]} Qd5 {[%emt 0:01:32]} 24. Nxf6 {[%emt 0:04:10]} gxf6 {[%emt 0:04:35]} 25. Rb5 {[%emt 0:01:17]} Qd7 {[%emt 0:01:51]} 26. Bxh7 {[%emt 0:03:18]} f5 {[%emt 0:02:28]} 27. Bg6 {[%emt 0:02:36]} Kg7 {[%emt 0:01:30]} 28. Bh5 {[%emt 0:02:48]} Rh8 {[%emt 0:04:50]} 29. Bf3 {[%emt 0:01:11]} Ba6 {[%emt 0:01:40]} 30. d5 {[%emt 0:02:42]} Bxb5 {[%emt 0:04:43]} 31. axb5 {[%emt 0:00:11]} Ne7 {[%emt 0:01:01]} 32. Bd4+ {[%emt 0:00:26]} Kg8 {[%emt 0:00:32]} 33. Bxh8 {[%emt 0:00:20]} Kxh8 {[%emt 0:00:05]} 34. Qa1+ {[%emt 0:01:56]} Kh7 {[%emt 0:02:13]} 35. dxe6 {[%emt 0:01:31]} Qxe6 {[%emt 0:01:31]} 36. Re2 {[%emt 0:02:38]} Qd7 {[%emt 0:01:07]} 37. Qf6 {[%emt 0:03:10]} Ng6 {[%emt 0:01:36]} 38. g3 {[%emt 0:02:22]} Qd1+ {[%emt 0:01:11]} 39. Kf2 {[%emt 0:00:11]} Qd4+ {[%emt 0:01:55]} 40. Qxd4 {[%emt 0:00:00]} Rxd4 {[%emt 0:00:00]} 41. h4 {[%emt 0:02:19]} Rd7 {[%emt 0:04:22]} 42. h5 {[%emt 0:07:18]} Ne7 {[%emt 0:00:20]} 43. Re6 {[%emt 0:01:42]} Kg7 {[%emt 0:01:09]} 44. h6+ {[%emt 0:00:30]} Kf7 {[%emt 0:01:19]} 45. h7 {[%emt 0:00:49]} Rd8 {[%emt 0:00:30]} 46. Rd6 {[%emt 0:00:28]} Rh8 {[%emt 0:01:50]} 47. Rd7 {[%emt 0:01:08]} Rxh7 {[%emt 0:01:17]} 48. Rxa7 {[%emt 0:00:19]} Rh6 {[%emt 0:03:09]} 49. Rb7 {[%emt 0:01:51]} Kf8 {[%emt 0:07:32]} 50. Ke2 {[%emt 0:08:34]} Rd6 {[%emt 0:01:30]} 51. Ke3 {[%emt 0:00:53]} Rg6 {[%emt 0:00:40]} 52. Kd4 {[%emt 0:01:33]} Rxg3 {[%emt 0:00:35]} 53. Bc6 {[%emt 0:00:20]} Ng6 {[%emt 0:07:37]} 54. Rxb6 {[%emt 0:01:47]} Rg4 {[%emt 0:00:24]} 55. Rb8+ {[%emt 0:05:34]} Ke7 {[%emt 0:01:15]} 56. b6 {[%emt 0:02:34]} Rxf4+ {[%emt 0:00:59]} 57. Kc5 {[%emt 0:00:25]} Ne5 {[%emt 0:01:24]} 58. Re8+ {[%emt 0:00:50]} Kf6 {[%emt 0:00:18]} 59. Rxe5 {[%emt 0:00:19]} Rf1 {[%emt 0:00:34]} 60. Re8 {[%emt 0:00:50]} Rc1+ {[%emt 0:00:33]} 61. Kd6 {[%emt 0:00:21]} Rd1+ {[%emt 0:00:17]} 62. Bd5 {[%emt 0:00:14]} Rb1 {[%emt 0:00:09]} 63. b7 {[%emt 0:00:17]} 1-0

[Event "XIX Najdorf Memorial 2019"]
[Site "Warsaw"]
[Date "2019.07.07"]
[Round "2.25"]
[White "Praczukowski, Stanislaw"]
[Black "Krishna Teja, N."]
[Result "0-1"]
[ECO "D30"]
[WhiteElo "2166"]
[BlackElo "2368"]
[Annotator "NA"]
[PlyCount "46"]
[EventDate "2019.07.06"]
[EventType "swiss"]
[EventCountry "POL"]
[SourceTitle "playchess.com"]
[Source "ChessBase"]
[SourceQuality "1"]
[TimeControl "40/5400+30:1800+30"]

1. d4 {[%emt 0:00:00]} d5 {[%emt 0:00:00]} 2. c4 {[%emt 0:00:00]} e6 {[%emt 0:00:00]} 3. Nf3 {[%emt 0:00:00]} Nf6 {[%emt 0:00:00]} 4. g3 {[%emt 0:00:06]} Bb4+ {[%emt 0:00:25]} 5. Nbd2 {[%emt 0:00:47]} dxc4 {[%emt 0:00:20]} 6. Bg2 {[%emt 0:00:48]} b5 {[%emt 0:00:24]} 7. a4 {[%emt 0:03:41]} c6 {[%emt 0:00:13]} 8. O-O {[%emt 0:05:48]} a5 {[%emt 0:04:35]} 9. Ne1 {[%emt 0:05:22]} Ra7 {[%emt 0:00:25]} 10. Nc2 {[%emt 0:00:59]} Be7 {[%emt 0:00:05]} 11. e4 {[%emt 0:01:08]} O-O {[%emt 0:00:07]} 12. e5 {[%emt 0:02:26]} Nd5 {[%emt 0:00:06]} 13. Ne4 {[%emt 0:00:26]} Nd7 {[%emt 0:00:26]} 14. Qg4 {[%emt 0:03:01]} f5 {[%emt 0:00:07]} 15. exf6 {[%emt 0:00:20]} N7xf6 {[%emt 0:00:04]} 16. Qe2 {[%emt 0:00:43]} Nxe4 {[%emt 0:02:58]} 17. Qxe4 {[%emt 0:04:35]} Bf6 {[%emt 0:05:12]} 18. Re1 {[%emt 0:03:43]} Qb6 {[%emt 0:02:44]} 19. Bh3 {[%emt 0:07:39]} Re7 {[%emt 0:01:49]} 20. Bd2 {[%emt 0:03:12]} b4 {[%emt 0:03:16]} 21. Be3 {[%emt 0:04:50]} b3 {[%emt 0:08:39]} 22. Na3 {[%emt 0:05:14]} c3 {[%emt 0:00:06]} 23. Rab1 {[%emt 0:02:44]} Qb4 {[%emt 0:02:07]} 0-1